[Event "*** SCC Grand Prix: Titled Tuesday Blitz"]
[Site "Chess.com"]
[Date "2020.06.02"]
[Round "4"]
[White "sunofadawn"]
[Black "DanielMieles1985"]
[Result "1-0"]
[WhiteElo "2374"]
[BlackElo "2583"]
[TimeControl "180+1"]
[EndTime "10:38:55 PDT"]
[Termination "sunofadawn won on time"]

1. d4 {[%clk 0:03:00.9]} 1... d5 {[%clk 0:02:49.4]} 2. c4 {[%clk 0:03:00.6]}
2... e6 {[%clk 0:02:49.3]} 3. g3 {[%clk 0:03:00.3]} 3... c6 {[%clk 0:02:49.7]}
4. Bg2 {[%clk 0:02:59.7]} 4... dxc4 {[%clk 0:02:50.1]} 5. Nf3 {[%clk 0:02:59.6]}
5... b5 {[%clk 0:02:48.6]} 6. O-O {[%clk 0:02:59]} 6... Bb7 {[%clk 0:02:49]} 7.
b3 {[%clk 0:02:58]} 7... cxb3 {[%clk 0:02:48.8]} 8. Qxb3 {[%clk 0:02:58.5]} 8...
Nf6 {[%clk 0:02:47.7]} 9. Bb2 {[%clk 0:02:53.1]} 9... Be7 {[%clk 0:02:38.9]} 10.
Ne5 {[%clk 0:02:50.6]} 10... O-O {[%clk 0:02:37.9]} 11. Nd2 {[%clk 0:02:50.6]}
11... Nd5 {[%clk 0:02:13.5]} 12. a4 {[%clk 0:02:46.1]} 12... b4 {[%clk
0:02:09.4]} 13. a5 {[%clk 0:02:39]} 13... Na6 {[%clk 0:01:51.4]} 14. Ndc4 {[%clk
0:02:29.4]} 14... c5 {[%clk 0:01:49]} 15. Rfd1 {[%clk 0:02:27.5]} 15... Rb8
{[%clk 0:01:47.5]} 16. e4 {[%clk 0:02:26.5]} 16... Nf6 {[%clk 0:01:47.6]} 17. d5
{[%clk 0:02:16.8]} 17... exd5 {[%clk 0:01:37.9]} 18. exd5 {[%clk 0:02:17.7]}
18... Nxd5 {[%clk 0:01:18.2]} 19. Ne3 {[%clk 0:02:03.4]} 19... c4 {[%clk
0:01:05.1]} 20. N5xc4 {[%clk 0:01:56.5]} 20... Nc5 {[%clk 0:00:48.3]} 21. Qa2
{[%clk 0:01:56.7]} 21... b3 {[%clk 0:00:38]} 22. Qb1 {[%clk 0:01:55.9]} 22...
Nxe3 {[%clk 0:00:24.2]} 23. Rxd8 {[%clk 0:01:53.6]} 23... Nxc4 {[%clk
0:00:24.7]} 24. Rxf8+ {[%clk 0:01:50.7]} 24... Bxf8 {[%clk 0:00:23]} 25. Bxb7
{[%clk 0:01:42.3]} 25... Rxb7 {[%clk 0:00:23.9]} 26. a6 {[%clk 0:01:35.3]} 26...
Rd7 {[%clk 0:00:13.6]} 27. Bc3 {[%clk 0:01:25.7]} 27... b2 {[%clk 0:00:08]} 28.
Bxb2 {[%clk 0:01:15.5]} 28... Nb3 {[%clk 0:00:07.8]} 29. Ra2 {[%clk 0:01:10.1]}
29... Ncd2 {[%clk 0:00:03.6]} 30. Qf5 {[%clk 0:01:06.5]} 1-0

[Event "*** SCC Grand Prix: Titled Tuesday Blitz"]
[Site "Chess.com"]
[Date "2020.06.02"]
[Round "4"]
[White "Pavel_Mir"]
[Black "lelajavakhishvili"]
[Result "1-0"]
[WhiteElo "2281"]
[BlackElo "2492"]
[TimeControl "180+1"]
[EndTime "10:38:55 PDT"]
[Termination "Pavel_Mir won by resignation"]

1. e4 {[%clk 0:03:00.9]} 1... c5 {[%clk 0:02:59.2]} 2. Nf3 {[%clk 0:03:00.7]}
2... Nc6 {[%clk 0:02:58.3]} 3. Nc3 {[%clk 0:03:00.3]} 3... e6 {[%clk 0:02:53]}
4. d4 {[%clk 0:03:00]} 4... cxd4 {[%clk 0:02:52.5]} 5. Nxd4 {[%clk 0:03:00.6]}
5... a6 {[%clk 0:02:50.6]} 6. Be2 {[%clk 0:02:58.1]} 6... Qc7 {[%clk 0:02:43.7]}
7. O-O {[%clk 0:02:57.8]} 7... Nf6 {[%clk 0:02:42.4]} 8. Kh1 {[%clk 0:02:56.2]}
8... Bb4 {[%clk 0:02:35.3]} 9. Bg5 {[%clk 0:02:55.9]} 9... Bxc3 {[%clk
0:02:31.8]} 10. Bxf6 {[%clk 0:02:56.1]} 10... gxf6 {[%clk 0:02:11.3]} 11. bxc3
{[%clk 0:02:56.1]} 11... Ne5 {[%clk 0:02:05.9]} 12. f4 {[%clk 0:02:52.4]} 12...
Nc4 {[%clk 0:01:53.3]} 13. Bxc4 {[%clk 0:02:32.1]} 13... Qxc4 {[%clk 0:01:52.4]}
14. Qd3 {[%clk 0:02:32.5]} 14... Qxd3 {[%clk 0:01:20.6]} 15. cxd3 {[%clk
0:02:32.3]} 15... b5 {[%clk 0:01:20.9]} 16. a4 {[%clk 0:02:31.8]} 16... bxa4
{[%clk 0:01:17]} 17. Rxa4 {[%clk 0:02:31.4]} 17... Ke7 {[%clk 0:01:10.8]} 18.
Rb1 {[%clk 0:02:30.6]} 18... h5 {[%clk 0:01:04.6]} 19. Kg1 {[%clk 0:02:27.8]}
19... Rg8 {[%clk 0:01:00.4]} 20. Kf2 {[%clk 0:02:27.7]} 20... h4 {[%clk
0:00:46.4]} 21. c4 {[%clk 0:02:23.1]} 21... Kd8 {[%clk 0:00:42.6]} 22. c5 {[%clk
0:02:17.8]} 22... Kc7 {[%clk 0:00:40.2]} 23. Nb5+ {[%clk 0:02:00.5]} 23... Kc6
{[%clk 0:00:40.1]} 24. d4 {[%clk 0:01:58.6]} 24... Bb7 {[%clk 0:00:18.7]} 25.
Nd6 {[%clk 0:01:49.6]} 25... Rgb8 {[%clk 0:00:18.5]} 26. Rab4 {[%clk 0:01:10.5]}
26... Ra7 {[%clk 0:00:17.7]} 27. Nxf7 {[%clk 0:00:48.5]} 27... a5 {[%clk
0:00:17.3]} 28. Rb6+ {[%clk 0:00:44.7]} 28... Kc7 {[%clk 0:00:17.4]} 29. Nd6
{[%clk 0:00:44]} 29... a4 {[%clk 0:00:17.7]} 30. Nb5+ {[%clk 0:00:43.9]} 30...
Kd8 {[%clk 0:00:17.2]} 31. Nxa7 {[%clk 0:00:44.4]} 31... a3 {[%clk 0:00:16.7]}
32. Ra1 {[%clk 0:00:40.7]} 1-0

[Event "*** SCC Grand Prix: Titled Tuesday Blitz"]
[Site "Chess.com"]
[Date "2020.06.02"]
[Round "4"]
[White "Girkassa"]
[Black "evgchess5"]
[Result "0-1"]
[WhiteElo "2529"]
[BlackElo "2849"]
[TimeControl "180+1"]
[EndTime "10:38:56 PDT"]
[Termination "evgchess5 won by checkmate"]

1. d4 {[%clk 0:03:00.9]} 1... d5 {[%clk 0:02:59.1]} 2. c4 {[%clk 0:03:00.5]}
2... e6 {[%clk 0:02:59.7]} 3. Nf3 {[%clk 0:02:59.8]} 3... Nf6 {[%clk 0:02:59.6]}
4. g3 {[%clk 0:02:59.9]} 4... dxc4 {[%clk 0:02:58.2]} 5. Bg2 {[%clk 0:02:59.4]}
5... Nc6 {[%clk 0:02:58.7]} 6. O-O {[%clk 0:02:58.7]} 6... Rb8 {[%clk 0:02:58]}
7. Bg5 {[%clk 0:02:48.9]} 7... Be7 {[%clk 0:02:53]} 8. Nc3 {[%clk 0:02:46.1]}
8... b5 {[%clk 0:02:45.8]} 9. Re1 {[%clk 0:02:40]} 9... O-O {[%clk 0:02:44.1]}
10. e4 {[%clk 0:02:39.8]} 10... h6 {[%clk 0:02:34.2]} 11. Bxf6 {[%clk
0:02:27.1]} 11... Bxf6 {[%clk 0:02:33.4]} 12. e5 {[%clk 0:02:27.3]} 12... Be7
{[%clk 0:02:32.9]} 13. d5 {[%clk 0:02:27]} 13... exd5 {[%clk 0:02:23.9]} 14.
Nxd5 {[%clk 0:02:25.1]} 14... Be6 {[%clk 0:02:23.4]} 15. Nh4 {[%clk 0:01:53.9]}
15... Nb4 {[%clk 0:02:17.5]} 16. Nxe7+ {[%clk 0:01:43.4]} 16... Qxe7 {[%clk
0:02:17]} 17. Be4 {[%clk 0:01:43.1]} 17... Rfd8 {[%clk 0:02:12.7]} 18. Qf3
{[%clk 0:01:42.6]} 18... Nd3 {[%clk 0:02:09.6]} 19. Bxd3 {[%clk 0:01:15.7]}
19... Rxd3 {[%clk 0:02:08.6]} 20. Qc6 {[%clk 0:01:05.2]} 20... Qd7 {[%clk
0:02:02.2]} 21. Qc5 {[%clk 0:01:02.8]} 21... c6 {[%clk 0:01:46.2]} 22. Ng2
{[%clk 0:01:00.9]} 22... g5 {[%clk 0:01:41.7]} 23. h4 {[%clk 0:00:58.9]} 23...
Qd4 {[%clk 0:01:33.8]} 24. Qe7 {[%clk 0:00:32.1]} 24... Rxg3 {[%clk 0:01:15.9]}
25. Kf1 {[%clk 0:00:18.7]} 25... Qd3+ {[%clk 0:01:08.6]} 26. Kg1 {[%clk
0:00:15.7]} 26... Rxg2+ {[%clk 0:01:06.4]} 27. Kxg2 {[%clk 0:00:15.8]} 27...
Bd5+ {[%clk 0:00:55.7]} 28. Kg1 {[%clk 0:00:05.5]} 28... Qf3 {[%clk 0:00:49]}
29. Kf1 {[%clk 0:00:05.1]} 29... Qh3+ {[%clk 0:00:48.4]} 30. Ke2 {[%clk
0:00:05.2]} 30... Qd3# {[%clk 0:00:48]} 0-1

[Event "*** SCC Grand Prix: Titled Tuesday Blitz"]
[Site "Chess.com"]
[Date "2020.06.02"]
[Round "4"]
[White "mohssenbinaddi"]
[Black "killer311"]
[Result "0-1"]
[WhiteElo "2073"]
[BlackElo "2392"]
[TimeControl "180+1"]
[EndTime "10:38:57 PDT"]
[Termination "killer311 won by resignation"]

1. Nf3 {[%clk 0:03:00.9]} 1... d5 {[%clk 0:02:59.4]} 2. g3 {[%clk 0:03:01.8]}
2... Nf6 {[%clk 0:02:58.6]} 3. Bg2 {[%clk 0:03:01.6]} 3... c6 {[%clk 0:02:59.2]}
4. c4 {[%clk 0:03:00.9]} 4... Bg4 {[%clk 0:02:59.3]} 5. cxd5 {[%clk 0:03:00.4]}
5... Bxf3 {[%clk 0:02:58.9]} 6. Bxf3 {[%clk 0:02:59.6]} 6... cxd5 {[%clk
0:02:59.4]} 7. Qb3 {[%clk 0:02:57.9]} 7... Qd7 {[%clk 0:02:56.7]} 8. Nc3 {[%clk
0:02:50.6]} 8... e6 {[%clk 0:02:56.8]} 9. d3 {[%clk 0:02:36.2]} 9... Nc6 {[%clk
0:02:56.7]} 10. Bg2 {[%clk 0:02:17.3]} 10... Bc5 {[%clk 0:02:55.4]} 11. O-O
{[%clk 0:02:16.7]} 11... O-O {[%clk 0:02:54.5]} 12. e3 {[%clk 0:02:16.7]} 12...
Rac8 {[%clk 0:02:47.6]} 13. d4 {[%clk 0:02:13.6]} 13... Be7 {[%clk 0:02:42.9]}
14. Qa4 {[%clk 0:02:08]} 14... a6 {[%clk 0:02:42.2]} 15. Bd2 {[%clk 0:02:02.3]}
15... Nb4 {[%clk 0:02:20.7]} 16. Qxd7 {[%clk 0:01:57.7]} 16... Nxd7 {[%clk
0:02:21.6]} 17. Rfc1 {[%clk 0:01:49.8]} 17... Nb6 {[%clk 0:02:10.1]} 18. Bf1
{[%clk 0:01:49.2]} 18... Nc4 {[%clk 0:01:55.8]} 19. Be1 {[%clk 0:01:21.7]} 19...
Nxb2 {[%clk 0:01:52.6]} 20. Rab1 {[%clk 0:01:20.8]} 20... N2d3 {[%clk
0:01:48.7]} 21. Nxd5 {[%clk 0:01:10]} 21... exd5 {[%clk 0:01:43.2]} 22. Bxb4
{[%clk 0:01:06.6]} 22... Nxb4 {[%clk 0:01:31.8]} 23. Rxc8 {[%clk 0:01:03.3]}
23... Rxc8 {[%clk 0:01:32.7]} 24. a3 {[%clk 0:01:03.7]} 24... Nc2 {[%clk
0:01:22.7]} 25. Rxb7 {[%clk 0:01:03.2]} 25... Bxa3 {[%clk 0:01:21.8]} 26. Bxa6
{[%clk 0:01:02.4]} 26... Ra8 {[%clk 0:01:16.4]} 27. Bd3 {[%clk 0:00:57.6]} 27...
Nb4 {[%clk 0:01:14.3]} 28. Bb5 {[%clk 0:00:49.5]} 28... g6 {[%clk 0:01:13.4]}
29. h4 {[%clk 0:00:48.5]} 29... h5 {[%clk 0:01:08]} 30. e4 {[%clk 0:00:40.9]}
30... dxe4 {[%clk 0:01:07]} 31. Bc4 {[%clk 0:00:40.8]} 31... Rf8 {[%clk
0:01:02.6]} 32. d5 {[%clk 0:00:40.7]} 32... Nd3 {[%clk 0:01:00.9]} 33. Rb3
{[%clk 0:00:37]} 33... Bc5 {[%clk 0:00:59.9]} 34. Bxd3 {[%clk 0:00:31.4]} 34...
exd3 {[%clk 0:01:00.8]} 35. Rxd3 {[%clk 0:00:32.3]} 35... Rd8 {[%clk 0:01:00.5]}
36. Kg2 {[%clk 0:00:32.3]} 36... Kf8 {[%clk 0:01:00.2]} 37. Kf3 {[%clk
0:00:33.2]} 37... Ke7 {[%clk 0:01:00.3]} 38. Rd2 {[%clk 0:00:33.5]} 38... Kd6
{[%clk 0:01:00.2]} 39. Ke4 {[%clk 0:00:34.4]} 39... Re8+ {[%clk 0:01:00.3]} 40.
Kf3 {[%clk 0:00:33.7]} 40... Re5 {[%clk 0:00:59.9]} 41. Ra2 {[%clk 0:00:32.5]}
41... Rxd5 {[%clk 0:00:59.1]} 42. Ra6+ {[%clk 0:00:32.1]} 42... Ke5 {[%clk
0:00:57.4]} 0-1

[Event "*** SCC Grand Prix: Titled Tuesday Blitz"]
[Site "Chess.com"]
[Date "2020.06.02"]
[Round "4"]
[White "cukin84"]
[Black "QueenOfTactics90"]
[Result "1-0"]
[WhiteElo "2207"]
[BlackElo "1958"]
[TimeControl "180+1"]
[EndTime "10:38:58 PDT"]
[Termination "cukin84 won by resignation"]

1. e4 {[%clk 0:03:00.9]} 1... c5 {[%clk 0:02:59.8]} 2. Nc3 {[%clk 0:03:00.4]}
2... Nc6 {[%clk 0:03:00.3]} 3. Bb5 {[%clk 0:03:00.1]} 3... g6 {[%clk 0:03:00.5]}
4. Bxc6 {[%clk 0:02:59.9]} 4... dxc6 {[%clk 0:02:59.3]} 5. d3 {[%clk 0:03:00]}
5... Bg7 {[%clk 0:02:59]} 6. f4 {[%clk 0:03:00.2]} 6... e5 {[%clk 0:02:54.1]} 7.
Nf3 {[%clk 0:02:59.4]} 7... exf4 {[%clk 0:02:39.8]} 8. Bxf4 {[%clk 0:02:57.9]}
8... Ne7 {[%clk 0:02:33.5]} 9. O-O {[%clk 0:02:56.6]} 9... O-O {[%clk
0:02:32.7]} 10. Qd2 {[%clk 0:02:55.7]} 10... Re8 {[%clk 0:02:21.6]} 11. Bh6
{[%clk 0:02:45.2]} 11... Bh8 {[%clk 0:02:21.1]} 12. Ng5 {[%clk 0:02:44]} 12...
Bd4+ {[%clk 0:02:06.7]} 13. Kh1 {[%clk 0:02:42.6]} 13... f5 {[%clk 0:02:06.2]}
14. Rae1 {[%clk 0:02:25.8]} 14... b5 {[%clk 0:01:50.1]} 15. Nd1 {[%clk
0:02:24.4]} 15... Bd7 {[%clk 0:01:38]} 16. Nf2 {[%clk 0:02:10.2]} 16... Nc8
{[%clk 0:01:20.9]} 17. Nfh3 {[%clk 0:01:59.3]} 17... Nd6 {[%clk 0:01:13.6]} 18.
c3 {[%clk 0:01:46]} 18... Bf6 {[%clk 0:01:10.1]} 19. Qf4 {[%clk 0:01:26.2]}
19... Be5 {[%clk 0:01:06.9]} 20. Qh4 {[%clk 0:01:24.6]} 20... Nf7 {[%clk
0:00:54.9]} 21. d4 {[%clk 0:01:09.6]} 21... c4 {[%clk 0:00:53.7]} 22. dxe5
{[%clk 0:01:09.3]} 22... Rxe5 {[%clk 0:00:43.1]} 23. Qg3 {[%clk 0:01:08.5]}
23... Qe7 {[%clk 0:00:30]} 24. Nxf7 {[%clk 0:01:07.2]} 24... Kxf7 {[%clk
0:00:29.7]} 25. exf5 {[%clk 0:00:58.9]} 25... Rxe1 {[%clk 0:00:28.8]} 26. Rxe1
{[%clk 0:00:58.6]} 26... Qf6 {[%clk 0:00:27.5]} 27. fxg6+ {[%clk 0:00:57.9]}
27... hxg6 {[%clk 0:00:28.4]} 28. Ng5+ {[%clk 0:00:53.1]} 28... Kg8 {[%clk
0:00:27]} 29. h3 {[%clk 0:00:51.9]} 29... Re8 {[%clk 0:00:25.6]} 30. Rxe8+
{[%clk 0:00:49]} 30... Bxe8 {[%clk 0:00:26.5]} 31. Nf3 {[%clk 0:00:48.3]} 31...
Kh7 {[%clk 0:00:26.1]} 32. Be3 {[%clk 0:00:45.5]} 32... Qe7 {[%clk 0:00:25.4]}
33. Bd4 {[%clk 0:00:41.5]} 33... Qe4 {[%clk 0:00:20.6]} 34. Ng5+ {[%clk
0:00:40.4]} 1-0

[Event "*** SCC Grand Prix: Titled Tuesday Blitz"]
[Site "Chess.com"]
[Date "2020.06.02"]
[Round "4"]
[White "Anna_Ko_Rnd"]
[Black "PauloCesarCosta_sad"]
[Result "0-1"]
[WhiteElo "1736"]
[BlackElo "2191"]
[TimeControl "180+1"]
[EndTime "10:39:00 PDT"]
[Termination "PauloCesarCosta_sad won on time"]

1. e4 {[%clk 0:03:00.9]} 1... e6 {[%clk 0:02:59.6]} 2. d4 {[%clk 0:03:00.4]}
2... d5 {[%clk 0:03:00.2]} 3. Nd2 {[%clk 0:03:00.4]} 3... Nf6 {[%clk 0:03:00.3]}
4. e5 {[%clk 0:02:54.6]} 4... Nfd7 {[%clk 0:02:58.4]} 5. Bd3 {[%clk 0:02:54.4]}
5... c5 {[%clk 0:02:58.9]} 6. c3 {[%clk 0:02:54.6]} 6... Nc6 {[%clk 0:02:59.4]}
7. Ne2 {[%clk 0:02:54.4]} 7... Qb6 {[%clk 0:02:59.9]} 8. Nf3 {[%clk 0:02:54.5]}
8... cxd4 {[%clk 0:03:00.1]} 9. cxd4 {[%clk 0:02:54.5]} 9... f6 {[%clk
0:03:00.7]} 10. exf6 {[%clk 0:02:54.3]} 10... Nxf6 {[%clk 0:03:01]} 11. O-O
{[%clk 0:02:54.3]} 11... Bd6 {[%clk 0:03:01.6]} 12. Bg5 {[%clk 0:02:53.8]} 12...
O-O {[%clk 0:03:00.1]} 13. Rb1 {[%clk 0:02:38.5]} 13... e5 {[%clk 0:02:44]} 14.
dxe5 {[%clk 0:02:36.2]} 14... Nxe5 {[%clk 0:02:43.9]} 15. Nxe5 {[%clk
0:02:34.1]} 15... Bxe5 {[%clk 0:02:43.6]} 16. Qc2 {[%clk 0:02:15.9]} 16... Kh8
{[%clk 0:02:23.1]} 17. Bxf6 {[%clk 0:02:04.5]} 17... Rxf6 {[%clk 0:02:19.3]} 18.
Ng3 {[%clk 0:01:35.2]} 18... Bd7 {[%clk 0:02:11.6]} 19. b3 {[%clk 0:01:08.8]}
19... Rc8 {[%clk 0:02:03.5]} 20. Qe2 {[%clk 0:01:08.2]} 20... Qe6 {[%clk
0:01:50]} 21. Rbe1 {[%clk 0:00:57.9]} 21... Re8 {[%clk 0:01:49.5]} 22. Qc2
{[%clk 0:00:53.2]} 22... Qf7 {[%clk 0:01:43.7]} 23. a4 {[%clk 0:00:24.4]} 23...
a6 {[%clk 0:01:33.8]} 24. Qd2 {[%clk 0:00:13.1]} 24... Rf4 {[%clk 0:01:26.1]}
25. f3 {[%clk 0:00:08.3]} 25... Kg8 {[%clk 0:01:21.2]} 26. Kh1 {[%clk
0:00:07.6]} 26... b5 {[%clk 0:01:11.3]} 27. axb5 {[%clk 0:00:04]} 27... Bxb5
{[%clk 0:01:12.2]} 28. Bxb5 {[%clk 0:00:03.5]} 28... axb5 {[%clk 0:01:12.3]} 29.
Qd3 {[%clk 0:00:02.6]} 29... b4 {[%clk 0:01:03.7]} 30. Qb5 {[%clk 0:00:01.1]}
30... Rh4 {[%clk 0:00:55]} 0-1

[Event "*** SCC Grand Prix: Titled Tuesday Blitz"]
[Site "Chess.com"]
[Date "2020.06.02"]
[Round "4"]
[White "jefferyx"]
[Black "hanzo_hasashi1"]
[Result "0-1"]
[WhiteElo "2924"]
[BlackElo "2766"]
[TimeControl "180+1"]
[EndTime "10:39:02 PDT"]
[Termination "hanzo_hasashi1 won on time"]

1. d4 {[%clk 0:03:00.9]} 1... Nf6 {[%clk 0:02:59.1]} 2. c4 {[%clk 0:03:01.1]}
2... e6 {[%clk 0:02:58.7]} 3. Nc3 {[%clk 0:03:01.8]} 3... Bb4 {[%clk 0:02:57.9]}
4. Nf3 {[%clk 0:03:02.5]} 4... d5 {[%clk 0:02:52.7]} 5. cxd5 {[%clk 0:03:03.4]}
5... exd5 {[%clk 0:02:51.7]} 6. Bf4 {[%clk 0:03:04.1]} 6... O-O {[%clk
0:02:48.5]} 7. e3 {[%clk 0:03:03.9]} 7... Re8 {[%clk 0:02:45.5]} 8. Be2 {[%clk
0:03:03.7]} 8... Ne4 {[%clk 0:02:41.8]} 9. Rc1 {[%clk 0:03:02]} 9... g5 {[%clk
0:02:36.4]} 10. Bg3 {[%clk 0:02:54.5]} 10... h5 {[%clk 0:02:35.6]} 11. Qa4
{[%clk 0:02:24.8]} 11... Bxc3+ {[%clk 0:02:28.6]} 12. bxc3 {[%clk 0:02:25.7]}
12... Nd7 {[%clk 0:02:12.1]} 13. c4 {[%clk 0:02:11.2]} 13... Nb6 {[%clk
0:01:51.7]} 14. Qa5 {[%clk 0:01:27.4]} 14... h4 {[%clk 0:01:46]} 15. Be5 {[%clk
0:01:27.8]} 15... f6 {[%clk 0:01:41.7]} 16. c5 {[%clk 0:01:26.7]} 16... fxe5
{[%clk 0:01:37.2]} 17. cxb6 {[%clk 0:01:26.7]} 17... cxb6 {[%clk 0:01:34]} 18.
Qb4 {[%clk 0:01:02.9]} 18... a5 {[%clk 0:01:27]} 19. Qb2 {[%clk 0:01:02.2]}
19... exd4 {[%clk 0:01:23.1]} 20. Qxd4 {[%clk 0:01:03.1]} 20... g4 {[%clk
0:01:17.6]} 21. Nd2 {[%clk 0:00:58]} 21... Bf5 {[%clk 0:01:11.9]} 22. f3 {[%clk
0:00:48.2]} 22... Nxd2 {[%clk 0:01:08]} 23. Kxd2 {[%clk 0:00:49.1]} 23... Qd6
{[%clk 0:01:03.4]} 24. Bc4 {[%clk 0:00:24.2]} 24... Qb4+ {[%clk 0:00:52.3]} 25.
Ke2 {[%clk 0:00:16]} 25... dxc4 {[%clk 0:00:51.7]} 26. Qd5+ {[%clk 0:00:16.1]}
26... Be6 {[%clk 0:00:50.4]} 27. Qg5+ {[%clk 0:00:16]} 27... Kf7 {[%clk
0:00:47.2]} 28. Qf4+ {[%clk 0:00:04.6]} 28... Kg6 {[%clk 0:00:44.5]} 29. Rc2
{[%clk 0:00:01.5]} 29... c3 {[%clk 0:00:41.8]} 0-1

[Event "*** SCC Grand Prix: Titled Tuesday Blitz"]
[Site "Chess.com"]
[Date "2020.06.02"]
[Round "4"]
[White "zala02"]
[Black "Danfii"]
[Result "0-1"]
[WhiteElo "2234"]
[BlackElo "2431"]
[TimeControl "180+1"]
[EndTime "10:39:02 PDT"]
[Termination "Danfii won on time"]

1. d4 {[%clk 0:03:00.9]} 1... Nf6 {[%clk 0:02:59.5]} 2. c4 {[%clk 0:03:00.9]}
2... e6 {[%clk 0:02:59.2]} 3. Nc3 {[%clk 0:03:01]} 3... Bb4 {[%clk 0:02:58.5]}
4. Nf3 {[%clk 0:03:01]} 4... c5 {[%clk 0:02:58]} 5. g3 {[%clk 0:02:57.8]} 5...
Nc6 {[%clk 0:02:58]} 6. Bg2 {[%clk 0:02:50.7]} 6... Ne4 {[%clk 0:02:49.9]} 7.
Bd2 {[%clk 0:02:26.8]} 7... Nxd2 {[%clk 0:02:40]} 8. Qxd2 {[%clk 0:02:23.9]}
8... cxd4 {[%clk 0:02:36.6]} 9. Nxd4 {[%clk 0:02:19.9]} 9... O-O {[%clk
0:02:37.5]} 10. O-O {[%clk 0:02:16.8]} 10... a6 {[%clk 0:02:16.1]} 11. a3 {[%clk
0:02:08.3]} 11... Be7 {[%clk 0:02:13.5]} 12. Rfd1 {[%clk 0:01:57.5]} 12... Qc7
{[%clk 0:02:12.2]} 13. Rac1 {[%clk 0:01:52.4]} 13... Ne5 {[%clk 0:01:58.5]} 14.
Ne4 {[%clk 0:01:24.5]} 14... f5 {[%clk 0:01:36.8]} 15. f4 {[%clk 0:00:38.9]}
15... fxe4 {[%clk 0:01:25.3]} 16. fxe5 {[%clk 0:00:38]} 16... Qxe5 {[%clk
0:01:25.4]} 17. Qe3 {[%clk 0:00:27.3]} 17... Bg5 {[%clk 0:01:19.6]} 18. Qxe4
{[%clk 0:00:20.2]} 18... Qxe4 {[%clk 0:01:19.1]} 19. Bxe4 {[%clk 0:00:21.1]}
19... Be3+ {[%clk 0:01:19.6]} 20. Kg2 {[%clk 0:00:18.5]} 20... Rf2+ {[%clk
0:01:10.7]} 21. Kh3 {[%clk 0:00:17.8]} 21... Bxc1 {[%clk 0:01:09.7]} 22. Rxc1
{[%clk 0:00:18.7]} 22... d5 {[%clk 0:01:06.5]} 23. cxd5 {[%clk 0:00:06.9]} 23...
exd5+ {[%clk 0:01:06.3]} 24. Rxc8+ {[%clk 0:00:07.6]} 24... Rxc8 {[%clk
0:01:07.1]} 25. Bxd5+ {[%clk 0:00:08.5]} 25... Kh8 {[%clk 0:01:07.5]} 26. Bxb7
{[%clk 0:00:05.6]} 26... Rd8 {[%clk 0:01:01.9]} 27. Ne6 {[%clk 0:00:04.4]} 27...
Re8 {[%clk 0:00:58.3]} 28. Nf4 {[%clk 0:00:04.4]} 28... g5 {[%clk 0:00:55.1]}
29. Nd3 {[%clk 0:00:02.6]} 29... Rfxe2 {[%clk 0:00:50.6]} 30. Bxa6 {[%clk
0:00:03.5]} 30... h5 {[%clk 0:00:45.5]} 0-1

[Event "*** SCC Grand Prix: Titled Tuesday Blitz"]
[Site "Chess.com"]
[Date "2020.06.02"]
[Round "4"]
[White "Mikhail_Golubev"]
[Black "RaunakSadhwani2005"]
[Result "0-1"]
[WhiteElo "2551"]
[BlackElo "2881"]
[TimeControl "180+1"]
[EndTime "10:39:03 PDT"]
[Termination "RaunakSadhwani2005 won by resignation"]

1. e4 {[%clk 0:03:00.9]} 1... c6 {[%clk 0:02:57.1]} 2. d4 {[%clk 0:03:00]} 2...
d5 {[%clk 0:02:55.3]} 3. Nc3 {[%clk 0:03:00]} 3... dxe4 {[%clk 0:02:54.9]} 4.
Nxe4 {[%clk 0:03:00]} 4... Nf6 {[%clk 0:02:55.8]} 5. Nxf6+ {[%clk 0:02:58.6]}
5... exf6 {[%clk 0:02:56.7]} 6. c3 {[%clk 0:02:56.2]} 6... Bd6 {[%clk
0:02:54.4]} 7. Bd3 {[%clk 0:02:56.1]} 7... O-O {[%clk 0:02:52.4]} 8. Ne2 {[%clk
0:02:55.1]} 8... Re8 {[%clk 0:02:51.8]} 9. Qc2 {[%clk 0:02:54.1]} 9... h5 {[%clk
0:02:50.8]} 10. O-O {[%clk 0:02:53.9]} 10... h4 {[%clk 0:02:51.1]} 11. h3 {[%clk
0:02:48.4]} 11... Nd7 {[%clk 0:02:50.5]} 12. Be3 {[%clk 0:02:34.2]} 12... Nf8
{[%clk 0:02:49.6]} 13. Rad1 {[%clk 0:02:27.6]} 13... Qa5 {[%clk 0:02:48]} 14. c4
{[%clk 0:02:24.8]} 14... Bd7 {[%clk 0:02:35.5]} 15. c5 {[%clk 0:02:14.1]} 15...
Bb8 {[%clk 0:02:25.3]} 16. Nf4 {[%clk 0:01:50.5]} 16... Qc7 {[%clk 0:02:22.6]}
17. Rfe1 {[%clk 0:01:29.9]} 17... Ne6 {[%clk 0:02:16.7]} 18. Nxe6 {[%clk
0:00:56.1]} 18... Qh2+ {[%clk 0:02:14.6]} 19. Kf1 {[%clk 0:00:55]} 19... Bxe6
{[%clk 0:02:14.8]} 20. Ke2 {[%clk 0:00:46.4]} 20... Qxg2 {[%clk 0:02:04]} 21.
Rg1 {[%clk 0:00:44.2]} 21... Qxh3 {[%clk 0:01:59.6]} 22. Kd2 {[%clk 0:00:39.5]}
22... Bg4 {[%clk 0:01:53.3]} 23. Rh1 {[%clk 0:00:31.2]} 23... Qf3 {[%clk
0:01:23.7]} 24. Rdg1 {[%clk 0:00:13]} 24... Bf4 {[%clk 0:01:15.5]} 25. Kc3
{[%clk 0:00:12.9]} 25... Bxe3 {[%clk 0:01:04.9]} 26. fxe3 {[%clk 0:00:12.7]}
26... Rxe3 {[%clk 0:01:00.3]} 27. Rxh4 {[%clk 0:00:10.2]} 27... Bf5 {[%clk
0:00:59.8]} 28. Rgh1 {[%clk 0:00:10.3]} 28... Rxd3+ {[%clk 0:00:59.6]} 29. Kb4
{[%clk 0:00:10]} 29... Rxd4+ {[%clk 0:00:57]} 30. Ka5 {[%clk 0:00:08.2]} 30...
b6+ {[%clk 0:00:52.1]} 31. cxb6 {[%clk 0:00:05.8]} 31... axb6+ {[%clk
0:00:51.8]} 32. Kxb6 {[%clk 0:00:05.9]} 32... Rxh4 {[%clk 0:00:52.2]} 33. Qxf5
{[%clk 0:00:02.5]} 33... Qxf5 {[%clk 0:00:50]} 0-1